bitfinex-derivatives/quotes_SOLF0:USTF0_20250613
["timestamp","ask_amount","ask_price","bid_price","bid_amount"]
[1749828257172,0.04982925,147.23,147.2,0.0468291]
[1749828257674,0.04982925,147.23,147.15,2.1754]
[1749828257872,15.93820586,147.21,147.15,2.1754]
[1749828258272,15.93820586,147.21,147.15,8.9676]
[1749828258478,2.3076,147.28,147.15,2.1754]
[1749828258479,15.93820586,147.24,147.15,2.1754]
[1749828258777,0.04700473,147.21,147.18,0.04849658]
[1749828259378,15.98521059,147.21,147.12,4.5468]
[1749828259577,15.93820586,147.21,147.12,4.5468]
[1749828260274,6.7923,147.16,147.12,4.5468]
[1749828260470,0.04374401,147.15,147.13,0.05117227]
[1749828261374,0.04374401,147.15,147.14,6.793]
[1749828261768,0.04374401,147.15,147.13,0.05117227]
[1749828262582,6.793,147.14,147.13,0.05117227]
[1749828262877,15.98194987,147.15,147.02,15.93820586]
[1749828263073,6.7942,147.12,147.07,6.7959]
[1749828263272,15.93820586,147.15,147.03,6.8211]
[1749828263674,0.0454297,147.1,147.08,0.05182552]
[1749828263867,0.04557838,147.1,147.08,0.04979574]
[1749828264279,6.7953,147.09,147.08,0.04979574]
[1749828264475,0.04557838,147.1,147.08,0.04979574]
[1749828264773,15.97039227,147.09,146.9,36.37039227]
[1749828265078,15.97039227,147.09,146.81,20.4236]
[1749828265079,15.97039227,147.0,146.92,4.6181]
[1749828265279,6.8011,146.97,146.92,4.6181]
[1749828265480,15.97039227,147.0,146.92,4.6181]
[1749828265776,0.04598071,146.97,146.95,0.04876876]
[1749828265978,6.8013,146.96,146.95,0.04876876]
[1749828266181,0.04598071,146.97,146.95,0.04876876]
[1749828266678,6.84718071,146.97,146.95,0.04876876]
[1749828266881,0.04598071,146.97,146.95,0.04876876]
[1749828267878,0.04598071,146.97,146.96,6.8012]
[1749828268174,15.97039227,147.06,146.95,0.04876876]
[1749828268374,15.97039227,147.06,146.95,6.8014]
[1749828268573,15.97039227,147.06,146.92,20.58849227]
[1749828269070,0.04297973,147.0,146.98,0.05021691]
[1749828269267,0.04468693,147.0,146.98,0.04703811]
[1749828270774,0.04468693,147.0,146.99,6.7999]
[1749828270978,0.04468693,147.0,146.98,0.04703811]
[1749828271290,2.2658,147.11,147.01,6.7985]
[1749828271291,6.7969,147.06,147.01,6.7985]
[1749828271488,6.7969,147.06,146.99,4.6938]
[1749828271675,2.2658,147.11,146.99,4.6938]
[1749828272286,0.04329757,147.06,147.04,0.04356132]
[1749828272977,15.97039227,147.05,146.99,4.6938]
[1749828273578,6.7978,147.04,146.99,11.4936]
[1749828273779,15.97039227,147.05,146.99,4.6938]
[1749828273980,15.97039227,147.08,146.99,4.6938]
[1749828274381,0.04540368,147.05,147.02,0.0464834]
[1749828274881,6.7978,147.04,147.02,0.0464834]
[1749828275273,16.02404737,147.05,146.92,15.97864369]
[1749828275472,2.2658,147.11,146.92,4.421]
[1749828275686,15.97864369,147.05,146.92,4.421]
[1749828276280,0.05227306,147.0,146.97,0.04393167]
[1749828277683,6.8003,146.98,146.97,0.04393167]
[1749828278888,6.8016,146.96,146.93,2.2647]
[1749828279085,6.8016,146.96,146.92,4.421]
[1749828279086,15.97864369,146.99,146.92,2.2393]
[1749828279279,15.97864369,146.99,146.87,4.6559]
[1749828279483,6.8021,146.95,146.9,6.8038]
[1749828279782,2.1681,147.03,146.87,6.8909]
[1749828279783,0.04572438,146.94,146.91,0.04617099]
[1749828279989,6.8032,146.92,146.91,0.04687062]
[1749828280781,15.97864369,146.93,146.82,2.2288]
[1749828281088,15.97864369,146.94,146.82,2.2288]
[1749828281384,6.804,146.9,146.82,2.2288]
[1749828281683,0.05088429,146.87,146.85,6.8503175]
[1749828281887,0.04646647,146.87,146.85,0.05046938]
[1749828283886,6.85196647,146.87,146.85,0.05046938]
[1749828284083,0.04646647,146.87,146.85,0.05046938]
[1749828284483,6.8059,146.86,146.85,0.05046938]
[1749828284682,0.04646647,146.87,146.79,6.941]
[1749828284988,15.97864369,146.88,146.79,6.941]
[1749828285687,6.8078,146.82,146.79,6.941]
[1749828285890,0.04399239,146.82,146.71,62.0]
[1749828286186,0.04850727,146.78,146.76,6.8102]
[1749828286391,0.05188031,146.78,146.76,6.8102]
[1749828286585,0.05188031,146.78,146.74,2.2953]
[1749828286889,15.97864369,146.85,146.74,2.2953]
[1749828287187,15.97864369,146.85,146.76,6.8102]
[1749828287579,2.3209,146.87,146.74,2.2953]
[1749828287782,15.97864369,146.8,146.74,2.2953]
[1749828287983,15.97864369,146.8,146.66,174.0941413]
[1749828288185,6.8107,146.76,146.67,4.7161]
[1749828288381,15.97864369,146.8,146.67,4.7161]
[1749828288583,2.2975,146.84,146.67,4.7161]
[1749828288584,18.27614369,146.84,146.67,4.7161]
[1749828288789,2.2975,146.84,146.72,15.97864369]
[1749828289087,0.04979661,146.79,146.72,15.97864369]
[1749828289487,18.24614369,146.9,146.76,15.97864369]
[1749828289794,18.24614369,146.9,146.77,2.3683]
[1749828289795,20.62994369,146.9,146.77,2.3683]
[1749828290093,15.97864369,146.87,146.77,2.3683]
[1749828290292,6.8068,146.84,146.79,6.8088]
[1749828290489,15.97864369,146.87,146.77,2.3683]
[1749828290795,4.6513,146.9,146.8,0.04802904]
[1749828290796,0.04411567,146.83,146.8,0.04802904]
[1749828290996,0.04449559,146.83,146.8,0.04975086]
[1749828291186,0.04449559,146.83,146.72,15.97864369]
[1749828291187,0.04449559,146.83,146.69,15.97864369]
[1749828291382,15.97864369,146.84,146.73,2.2198]
[1749828291695,15.97864369,146.88,146.73,2.2198]
[1749828292193,0.04556576,146.82,146.79,6.8089]
[1749828292392,0.04595194,146.82,146.79,6.8089]
[1749828292689,0.04595194,146.82,146.74,2.2283]
[1749828294681,16.0678227,146.82,146.74,2.2283]
[1749828295500,0.04595194,146.82,146.74,2.2283]
[1749828295693,6.8085,146.81,146.76,6.8102]
[1749828295895,0.04595194,146.82,146.76,6.8102]
[1749828296092,0.04595194,146.82,146.74,2.2283]
[1749828296794,6.8088,146.8,146.75,6.8108]
[1749828296994,0.04475211,146.79,146.75,6.8108]
[1749828298404,0.04475211,146.79,146.76,6.8104]
[1749828299295,0.04475211,146.79,146.75,6.8109]
[1749828300102,0.04475211,146.79,146.74,2.2283]
[1749828300301,0.04475211,146.79,146.73,2.2198]
[1749828300706,6.8109,146.76,146.73,2.2198]
[1749828300909,0.05015056,146.76,146.73,2.2198]
[1749828301099,0.05015056,146.76,146.7,2.332]
[1749828301310,10.60611605,146.76,146.7,2.332]
[1749828301615,10.55596549,146.72,146.67,2.2117]
[1749828301911,0.04348421,146.71,146.67,2.2117]
[1749828303007,12.94566549,146.82,146.7,10.55596549]
[1749828303319,6.808,146.82,146.77,6.8097]
[1749828303509,16.01683779,146.88,146.74,16.01683779]
[1749828303822,5.5663,146.91,146.77,16.01683779]
[1749828304112,0.05082593,146.85,146.83,0.05051422]
[1749828304312,0.04549436,146.85,146.83,0.04331778]
[1749828305514,0.04549436,146.85,146.83,6.85021778]
[1749828305906,0.04549436,146.85,146.83,0.04331778]
[1749828306112,6.8043,146.9,146.83,0.04331778]
[1749828306419,16.01629481,146.97,146.84,16.01629481]
[1749828306619,16.01629481,146.97,146.85,2.2144]
[1749828306819,16.01629481,146.94,146.85,2.2144]
[1749828307018,6.8042,146.9,146.88,0.04348506]
[1749828308119,0.04488414,146.91,146.88,0.04348506]
[1749828308727,6.8044,146.9,146.88,0.04348506]
[1749828309224,6.84878414,146.91,146.88,0.04348506]
[1749828309422,0.04488414,146.91,146.88,0.04348506]
[1749828310322,6.8045,146.89,146.88,0.04348506]
[1749828310718,0.04488414,146.91,146.88,0.04348506]
[1749828310920,6.84878414,146.91,146.88,0.04348506]
[1749828311319,6.8041,146.9,146.88,0.04348506]
[1749828311718,0.04488414,146.91,146.88,0.04348506]
[1749828312835,16.90319481,147.0,146.9,6.804]
[1749828313126,16.90319481,147.0,146.87,16.01629481]
[1749828313520,16.01629481,147.0,146.87,16.01629481]
[1749828313822,0.04871359,146.95,146.92,0.0486159]
[1749828314028,0.04423468,146.95,146.92,6.8539074]
[1749828314328,0.04423468,146.95,146.92,0.0511074]
[1749828314520,228.58760279,147.04,146.95,6.8014]
[1749828314723,228.58760279,147.04,146.93,16.01629481]
[1749828315111,228.58760279,147.04,146.96,6.8009]
[1749828315112,6.7997,147.0,146.96,6.8009]
[1749828315522,0.04355481,146.99,146.97,0.05153894]
[1749828315831,0.04355481,146.99,146.97,6.85223894]
[1749828316525,0.04355481,146.99,146.97,0.05153894]
[1749828317521,6.8003,146.98,146.97,0.05153894]
[1749828317717,0.04355481,146.99,146.97,0.05153894]
[1749828317922,6.8003,146.98,146.97,0.05153894]
[1749828318124,15.96758628,147.09,146.97,16.01912522]
[1749828318328,4.5088,147.08,146.94,15.96758628]
[1749828318629,4.5088,147.08,146.98,6.8002]
[1749828318630,6.7982,147.03,146.98,6.8002]
[1749828318830,4.5088,147.08,146.94,15.96758628]
[1749828319231,0.04971102,147.02,147.0,0.05076425]
[1749828319433,0.04930985,147.02,147.0,0.04761014]
[1749828319631,6.84800985,147.02,147.0,0.04761014]
[1749828319835,0.04930985,147.02,147.0,0.04761014]
[1749828320929,0.04930985,147.02,146.95,2.3361]
[1749828321631,15.96758628,147.0,146.92,2.306]
[1749828321932,0.04508162,146.97,146.95,0.04874142]
[1749828322132,0.04508162,146.97,146.95,0.04836345]
[1749828322133,0.04911391,146.97,146.95,0.04836345]
[1749828323529,4.5088,147.08,146.95,0.04836345]
[1749828323530,10.68790488,147.08,146.95,0.04836345]
[1749828323730,15.96758628,147.07,146.93,15.96758628]
[1749828324030,15.96758628,147.07,146.97,6.8007]
[1749828324235,15.96758628,147.07,146.93,15.96758628]
[1749828324822,0.05111981,147.01,146.99,0.04603425]
[1749828325027,0.05144282,147.01,146.99,0.04789782]
[1749828325828,6.7994,147.0,146.99,0.04789782]
[1749828327234,6.8013,146.96,146.92,2.306]
[1749828327528,15.96758628,147.04,146.92,2.306]
[1749828328128,6.8007,146.98,146.93,6.8024]
[1749828328432,0.04789413,146.97,146.94,0.05116425]
[1749828328635,15.96758628,147.07,146.94,0.05110553]
[1749828328825,15.96758628,147.07,146.93,15.96758628]
[1749828329225,6.7996,147.0,146.95,6.8014]
[1749828329430,10.5157733,147.04,146.94,10.5157733]
[1749828329735,0.04590937,147.0,146.98,0.0515428]
[1749828329937,0.04618333,147.0,146.98,0.04608775]
[1749828330135,0.04618333,147.0,146.99,6.7999]
[1749828330430,0.04618333,147.0,146.98,0.04608775]
[1749828331530,10.5157733,147.12,146.98,10.56186105]
[1749828331735,10.5157733,147.1,147.0,10.5157733]
[1749828331934,10.5157733,147.1,147.0,6.7991]
[1749828332632,0.04908355,147.06,147.04,0.05057506]
[1749828332831,3.3394,147.14,147.04,10.56634836]
[1749828333035,3.3394,147.14,146.99,2.3692]
[1749828333036,6.7946,147.11,147.06,10.5157733]
[1749828333239,2.2671,147.14,147.06,17.3123733]
[1749828333738,6.795,147.1,147.06,10.5157733]
[1749828333942,0.04438049,147.09,147.07,0.05068549]
[1749828334442,6.17910488,147.24,147.08,10.5157733]
[1749828334634,10.49186061,147.21,147.1,10.49186061]
[1749828334828,10.49186061,147.19,147.09,2.3056]
[1749828335231,6.7923,147.16,147.11,6.794]
[1749828335431,15.94536808,147.21,147.09,2.3056]
[1749828335628,6.83545655,147.16,147.14,0.05016421]
[1749828336335,6.7925,147.15,147.14,0.05016421]
[1749828339744,6.83525655,147.16,147.14,0.05016421]
[1749828339943,0.04305655,147.16,147.14,0.05016421]
[1749828340234,0.04305655,147.16,147.15,6.7925]
[1749828340435,2.3352,147.24,147.14,0.05016421]
[1749828340635,15.94546315,147.27,147.14,2.1948]
[1749828340845,6.7895,147.22,147.14,2.1948]
[1749828341042,18.28206315,147.27,147.19,6.7906]
[1749828341235,18.28206315,147.27,147.16,15.94546315]
[1749828341436,0.05151389,147.23,147.2,0.05214068]
[1749828342444,15.94546315,147.3,147.2,6.84184068]
[1749828342638,6.788,147.25,147.17,2.2335]
[1749828343147,6.7891,147.23,147.17,2.2335]
[1749828343342,0.04659263,147.21,147.19,0.04996626]
[1749828343651,6.83505091,147.21,147.19,0.04443614]
[1749828343837,0.04505091,147.21,147.19,0.04443614]
[1749828345346,6.83475091,147.21,147.19,0.04443614]
[1749828346045,6.7902,147.2,147.19,0.04443614]
[1749828346442,22.7351004,147.2,147.19,3.614e-05]
[1749828346845,29.5351004,147.2,147.19,3.614e-05]
[1749828354748,6.7952,147.1,147.05,9.151]
[1749828354946,15.9449004,147.13,147.06,6.7966]
[1749828355152,15.9449004,147.16,147.05,2.3542]
[1749828355752,0.04730142,147.12,147.09,0.04289847]
[1749828355953,6.84140142,147.12,147.09,0.04289847]
[1749828357766,0.04730142,147.12,147.09,0.04289847]
[1749828358174,0.04730142,147.12,147.1,6.7948]
[1749828358469,0.04730142,147.12,147.09,0.04289847]
[1749828359165,0.04730142,147.12,147.11,6.7943]
[1749828359365,15.9449004,147.21,147.09,15.98779887]
[1749828359668,6.22800846,147.24,147.15,6.7924]
[1749828359669,18.1314004,147.24,147.15,6.7924]
[1749828359866,18.1314004,147.24,147.1,2.2529]
[1749828360268,18.1314004,147.24,147.16,0.04593859]
[1749828360469,15.94790761,147.19,147.1,2.2529]
[1749828360774,15.94790761,147.15,147.13,4.9e-06]
[1749828361176,6.7929,147.14,147.13,4.9e-06]
[1749828361877,13.5929,147.14,147.13,4.9e-06]
[1749828362378,19.82090846,147.14,147.13,4.9e-06]
[1749828362877,13.5929,147.14,147.13,4.9e-06]
[1749828363082,19.82090846,147.14,147.13,4.9e-06]
[1749828363470,13.5929,147.14,147.13,4.9e-06]
[1749828363780,6.7984,147.03,146.99,2.3228]
[1749828363967,15.94790761,147.06,146.99,2.3228]
[1749828364371,6.7987,147.02,146.99,2.3228]
[1749828364577,15.94790761,147.06,146.97,2.3001]
[1749828364769,15.99513296,147.03,147.0,0.05131519]
[1749828364968,15.99159578,147.03,147.0,0.04378862]
[1749828365682,6.7989,147.01,147.0,0.04378862]
[1749828366072,0.04368817,147.03,147.0,6.84318862]
[1749828366570,0.04368817,147.03,147.0,0.04378862]
[1749828368082,6.84178817,147.03,147.0,0.04378862]
[1749828368285,0.04368817,147.03,147.0,0.04378862]
[1749828368581,6.84178817,147.03,147.0,0.04378862]
[1749828369676,0.04368817,147.03,147.0,0.04378862]
[1749828370079,6.7988,147.02,147.0,0.04378862]
[1749828370278,0.04368817,147.03,147.0,0.04378862]
[1749828371773,2.2568,147.11,147.03,6.7978]
[1749828371973,15.94790761,147.13,147.01,2.3915]
[1749828372174,6.7951,147.1,147.01,2.3915]
[1749828372478,15.94790761,147.13,147.03,6.7979]
[1749828372781,15.94790761,147.13,147.07,0.0456424]
[1749828372983,0.05207828,147.09,147.07,0.0456424]
[1749828373377,6.7957,147.08,147.07,0.0456424]
[1749828373781,0.05207828,147.09,147.07,0.0456424]
[1749828374379,6.7957,147.08,147.07,0.0456424]
[1749828374579,0.05207828,147.09,147.01,2.3915]
[1749828374780,15.94790761,147.07,147.01,2.3915]
[1749828375081,15.94790761,147.07,146.97,6.8005]
[1749828375281,15.94790761,147.07,146.97,2.2661]
[1749828375484,0.05233448,147.03,147.01,0.04641485]
[1749828375674,0.04838297,147.03,147.01,0.04902277]
[1749828376287,0.04838297,147.03,146.96,2.3512]
[1749828376778,6.7997,147.0,146.96,2.3512]
[1749828376975,15.94790761,147.04,146.96,2.3512]
[1749828377284,0.04798597,147.01,146.99,0.0450319]
[1749828377882,0.04798597,147.01,147.0,6.7994]
[1749828378086,0.04798597,147.01,146.99,0.0450319]
[1749828378281,15.94790761,147.07,146.99,0.0450319]
[1749828378483,15.94790761,147.07,146.96,2.3512]
[1749828378887,6.7989,147.02,146.97,6.8005]
[1749828379087,2.299,147.09,146.96,2.3512]
[1749828379285,2.299,147.09,147.01,0.04589043]
[1749828379591,0.0438409,147.04,147.01,0.04589043]
[1749828381489,0.0438409,147.04,147.01,6.84469043]
[1749828381781,0.0438409,147.04,147.01,0.04589043]
[1749828382583,6.7985,147.02,147.01,0.04589043]
[1749828383289,15.94790761,147.03,146.94,6.802]
[1749828383684,15.94790761,147.03,146.95,6.8017]
[1749828383885,15.94790761,147.03,146.93,4.5557]
[1749828384082,15.94790761,147.06,146.93,4.5557]
[1749828384292,0.04405789,147.01,146.98,6.84964017]
[1749828384888,0.04405789,147.01,146.98,0.04954017]
[1749828385392,6.84325789,147.01,146.98,0.04954017]
[1749828385583,0.04405789,147.01,146.98,0.04954017]
[1749828386185,6.7994,147.0,146.98,0.04954017]
[1749828386386,0.04405789,147.01,146.98,0.04954017]
[1749828386986,18.24690761,147.09,146.98,0.04954017]
[1749828387182,15.94790761,147.09,146.94,15.94790761]
[1749828387388,15.94790761,147.09,146.97,15.94790761]
[1749828388197,0.04928015,147.04,147.02,0.04947608]
[1749828388391,0.04928015,147.04,147.02,0.05133675]
[1749828388392,6.7981,147.03,147.02,0.05133675]
[1749828388691,0.04690209,147.04,147.02,0.05133675]
[1749828389493,15.94790761,147.11,147.02,0.05133675]
[1749828389689,15.94790761,147.14,147.0,15.94790761]
[1749828389885,6.7962,147.07,147.05,6.797]
[1749828390280,15.94790761,147.14,147.05,6.797]
[1749828390487,0.04668639,147.11,147.08,0.05004724]
[1749828391593,6.84138639,147.11,147.08,0.05004724]
[1749828391988,0.04668639,147.11,147.08,0.05004724]
[1749828392194,6.7953,147.09,147.08,4.724e-05]
[1749828395904,22.77134587,147.09,147.08,4.724e-05]
[1749828396405,35.88700379,147.09,147.08,4.724e-05]
[1749828397299,29.57134587,147.09,147.08,4.724e-05]
[1749828397491,35.89119083,147.09,147.08,4.724e-05]
[1749828397695,29.57134587,147.09,147.08,4.724e-05]
[1749828398404,29.09171161,147.09,147.08,4.724e-05]
[1749828398695,6.36705213,147.11,147.08,4.724e-05]
[1749828399202,6.7951,147.1,147.08,4.724e-05]
[1749828399701,0.04668639,147.11,147.08,4.724e-05]
[1749828400607,6.84128639,147.11,147.08,4.724e-05]
[1749828400796,0.04668639,147.11,147.08,4.724e-05]
[1749828402194,6.84118639,147.11,147.08,4.724e-05]
[1749828402390,0.04668639,147.11,147.08,4.724e-05]
[1749828402798,6.84138639,147.11,147.08,4.724e-05]
[1749828403195,0.04668639,147.11,147.08,4.724e-05]
[1749828403598,0.04668639,147.11,147.09,6.7949]
[1749828403998,15.97604587,147.18,147.08,4.724e-05]
[1749828404193,15.97604587,147.15,147.06,4.538]
[1749828404797,15.97604587,147.15,147.07,6.7961]
[1749828405004,0.04479722,147.12,147.1,0.0430752]
[1749828405200,0.04686612,147.12,147.1,0.04455322]
[1749828405597,6.7944,147.11,147.1,0.04455322]
[1749828405998,0.04686612,147.12,147.1,0.04455322]
[1749828406499,6.7944,147.11,147.1,0.04455322]
[1749828406698,0.04686612,147.12,147.1,0.04455322]
[1749828407100,6.7944,147.11,147.1,0.04455322]
[1749828407297,10.78422797,147.19,147.1,0.04455322]
[1749828407510,6.7936,147.13,147.06,4.538]
[1749828407805,20.44104587,147.19,147.06,4.538]
[1749828408010,6.7955,147.09,147.06,4.538]
[1749828408401,0.04861494,147.09,147.06,0.05212426]
[1749828408601,6.7965,147.07,147.06,0.05212426]
[1749828410008,16.00489401,147.09,146.99,4.6622]
[1749828410212,15.95627907,147.05,146.99,4.6622]
[1749828410403,6.7985,147.03,146.99,2.2947]
[1749828410603,15.95627907,147.05,146.99,2.2947]
[1749828410808,15.95627907,147.06,146.99,2.2947]
[1749828411010,15.95627907,147.06,147.01,6.84570947]
[1749828411011,0.04983957,147.04,147.01,6.84570947]
[1749828411404,0.04983957,147.04,147.01,0.04700947]
[1749828411608,0.04983957,147.04,147.02,6.7982]
[1749828412308,15.95627907,147.1,147.01,0.04700947]
[1749828412507,15.95627907,147.1,147.0,2.3359]
[1749828412811,15.95627907,147.1,147.03,6.7981]
[1749828413214,6.7961,147.08,147.03,6.7981]
[1749828413414,6.84333752,147.08,147.05,0.05203762]
[1749828413711,0.04723752,147.08,147.05,0.05203762]
[1749828414711,6.7962,147.07,147.05,0.05203762]
[1749828415501,0.04723752,147.08,147.05,0.05203762]
[1749828415502,6.84333752,147.08,147.05,0.05203762]
[1749828415700,0.04723752,147.08,147.05,0.05203762]
[1749828416710,6.7982,147.03,146.99,2.2947]
[1749828416912,15.95627907,147.07,146.99,2.2947]
[1749828417414,6.7979,147.04,147.0,6.7992]
[1749828417806,0.04317114,147.03,147.01,0.04807696]
[1749828418015,0.04317114,147.03,147.01,6.84687696]
[1749828418217,0.04317114,147.03,147.01,0.04807696]
[1749828418609,0.04317114,147.03,147.01,6.84687696]
[1749828419218,0.04317114,147.03,147.02,6.7985]
[1749828419416,15.95627907,147.1,147.01,2.39707696]
[1749828419615,15.95627907,147.1,147.01,2.349]
[1749828419920,5.38044587,147.09,147.01,2.349]
[1749828420312,6.7965,147.07,147.01,2.349]
[1749828420513,0.04360414,147.05,147.03,0.04774069]
[1749828420910,0.04360414,147.05,146.99,2.2947]
[1749828421215,10.51539442,147.04,146.99,2.2947]
[1749828421418,6.7988,147.02,146.99,2.2947]
[1749828421616,10.51539442,147.04,146.99,2.2947]
[1749828421820,10.51539442,147.04,147.0,0.05233234]
[1749828421821,6.7986,147.02,147.0,0.05233234]
[1749828422013,0.04430688,147.03,147.0,0.05233234]
[1749828422515,0.04430688,147.03,147.0,6.85143234]
[1749828422710,0.04430688,147.03,147.0,0.05233234]
[1749828422915,21.21619812,147.12,147.01,10.51539442]
[1749828423223,10.51539442,147.1,147.02,2.3522]
[1749828423617,10.51539442,147.08,147.02,2.3522]
[1749828424020,0.04834472,147.06,147.04,0.05075835]
[1749828426122,6.84524472,147.06,147.04,0.05075835]
[1749828426324,0.04834472,147.06,147.04,0.05075835]
[1749828426819,10.56373914,147.06,146.99,6.7998]
[1749828427322,10.51539442,147.04,146.98,2.3683]
[1749828427716,6.3241037,147.08,146.98,12.88369442]
[1749828428022,17.0249074,147.12,147.02,0.04405264]
[1749828428023,0.04866504,147.04,147.02,0.04405264]
[1749828428227,0.04354021,147.04,147.02,0.04754934]
[1749828428414,0.04354021,147.04,147.03,6.7981]
[1749828428925,0.04354021,147.04,147.02,0.04754934]
[1749828429422,6.84144021,147.04,147.02,0.04754934]
[1749828429622,0.04354021,147.04,147.02,0.04754934]
[1749828430119,6.7981,147.03,147.02,0.04754934]
[1749828432418,6.7992,147.01,146.95,6.9546]
[1749828432614,10.51539442,147.03,146.95,6.9546]
[1749828432821,6.7999,147.0,146.95,13.7561]
[1749828433223,10.51539442,147.03,146.95,6.9546]
[1749828433425,4.4905,147.05,146.98,0.05057101]
[1749828433426,17.31529442,146.99,146.98,0.05057101]
[1749828433623,10.51539442,146.99,146.9,2.3377]
[1749828434028,6.8013,146.96,146.92,6.8029]
[1749828434229,10.51539442,146.99,146.9,2.3377]
[1749828434434,6.8002,146.99,146.95,6.8016]
[1749828434725,0.04451236,146.96,146.95,6.8016]
[1749828435024,6.3241037,147.08,146.95,10.51539442]
[1749828435225,5.3768119,147.07,147.0,10.51539442]
[1749828435433,6.797,147.06,147.02,6.7982]
[1749828435622,10.51539442,147.09,147.01,2.3583]
[1749828435930,6.7971,147.05,147.04,0.04453688]
[1749828436428,6.84863752,147.06,147.04,0.04453688]
[1749828436630,0.05173752,147.06,147.04,0.04453688]
[1749828437128,6.7971,147.05,147.04,0.04453688]
[1749828437335,0.05173752,147.06,147.04,0.04453688]
[1749828438131,6.84873752,147.06,147.04,0.04453688]
[1749828439533,6.7971,147.05,147.04,0.04453688]
[1749828439930,0.05173752,147.06,147.04,0.04453688]
[1749828440734,6.7971,147.05,147.04,0.04453688]
[1749828440932,0.05173752,147.06,147.04,0.04453688]
[1749828444030,6.84843752,147.06,147.04,0.04453688]
[1749828444230,0.05173752,147.06,147.04,6.84203688]
[1749828444436,6.7957,147.09,147.04,0.04453688]
[1749828444631,8.432997,147.16,147.04,0.04453688]
[1749828444632,10.51539442,147.11,147.04,0.04453688]
[1749828444936,10.51539442,147.09,147.02,6.7983]
[1749828445127,6.797,147.06,147.02,6.7983]
[1749828445529,0.04471389,147.05,147.03,0.04939629]
[1749828445837,0.04471389,147.05,147.03,6.84729629]
[1749828446136,6.84211389,147.05,147.03,0.04939629]
[1749828446330,0.04471389,147.05,147.03,0.04939629]
[1749828446733,0.04471389,147.05,147.03,6.84719629]
[1749828446932,0.04471389,147.05,147.03,0.04939629]
[1749828447131,6.3241037,147.13,147.03,0.04939629]
[1749828447132,10.51539442,147.13,147.03,0.04939629]
[1749828447430,5.38665878,147.12,147.06,10.51539442]
[1749828447635,20.62069812,147.17,147.06,10.51539442]
[1749828447834,12.17774574,147.16,147.13,6.7931]
[1749828448036,0.04347926,147.16,147.13,0.04558903]
[1749828449540,5.38005378,147.22,147.13,0.04558903]
[1749828449541,5.3758513,147.21,147.13,0.04558903]
[1749828449834,6.3241037,147.24,147.07,2.2724]
[1749828449835,10.51539442,147.24,147.12,10.51539442]
[1749828450137,5.36944916,147.23,147.12,10.51539442]
[1749828450339,10.51539442,147.22,147.12,10.51539442]
[1749828450635,0.04763741,147.18,147.16,0.0515609]
[1749828451534,10.56303183,147.18,147.08,2.1971]
[1749828451832,10.51539442,147.14,147.08,2.1971]
[1749828452033,10.51539442,147.15,147.08,2.1971]
[1749828452239,12.88409442,147.17,147.08,2.1971]
[1749828452538,0.04385982,147.14,147.11,0.04749224]
[1749828452939,6.7934,147.13,147.11,0.04749224]
[1749828453733,6.7939,147.12,147.11,0.04749224]
[1749828456738,10.51539442,147.13,147.11,0.04749224]
[1749828456944,0.04385982,147.14,147.11,0.04749224]
[1749828457440,0.04385982,147.14,147.11,6.84159224]
[1749828457746,0.04385982,147.14,147.11,0.04749224]
[1749828458345,6.7939,147.12,147.11,0.04749224]
[1749828458734,0.04385982,147.14,147.11,0.04749224]
[1749828459641,6.7889,147.23,147.12,10.51539442]
[1749828459837,6.7889,147.23,147.16,10.51539442]
[1749828460043,2.1684,147.26,147.16,10.51539442]
[1749828460345,6.7889,147.23,147.19,6.7904]
[1749828460646,0.05059034,147.22,147.2,0.0497273]
[1749828460849,0.05059034,147.22,147.2,6.8399273]
[1749828461549,0.05059034,147.22,147.2,0.0497273]
[1749828463249,2.2438,147.3,147.2,0.0497273]
[1749828463447,4.6135098,147.29,147.18,10.51539442]
[1749828463641,2.2438,147.3,147.23,6.7886]
[1749828463950,2.2438,147.3,147.2,10.51539442]
[1749828464452,0.04413297,147.26,147.24,0.04827598]
[1749828466050,0.04413297,147.26,147.24,6.83647598]
[1749828466248,0.04413297,147.26,147.24,0.04827598]
[1749828466747,10.55952739,147.26,147.14,2.3142]
[1749828466946,10.51539442,147.24,147.14,4.6255]
[1749828467149,6.7902,147.21,147.16,6.7919]
[1749828467344,10.51539442,147.24,147.16,6.7919]
[1749828467546,10.51539442,147.24,147.14,4.6255]
[1749828467744,0.04721791,147.2,147.18,0.05197979]
[1749828468843,0.04721791,147.2,147.18,6.84287979]
[1749828469045,10.51539442,147.26,147.18,0.05197979]
[1749828469251,6.7882,147.25,147.2,6.7901]
[1749828469552,10.48193963,147.27,147.16,10.48193963]